bitfinex/quotes_ETHUSD_20250425
["timestamp","ask_amount","ask_price","bid_price","bid_amount"]
[1745556420696,5.42107,1768.7,1768.3,5.8389032]
[1745556420885,5.85197278,1768.7,1768.3,5.8389032]
[1745556421899,5.85197278,1768.7,1768.3,0.18379667]
[1745556422595,5.85197278,1768.7,1768.3,5.83892628]
[1745556423298,0.8216,1768.6,1768.3,5.83892628]
[1745556424469,0.8216,1768.6,1768.3,0.18379667]
[1745556425619,1.48895728,1768.6,1768.3,0.18379667]
[1745556425770,5.28990278,1768.7,1768.3,5.8387708]
[1745556425970,5.28990278,1768.7,1768.3,5.65497413]
[1745556426165,5.28990278,1768.7,1768.4,0.18369467]
[1745556426373,5.28990278,1768.7,1768.4,5.83841355]
[1745556426572,0.42433935,1769.1,1768.7,0.7866]
[1745556426793,4.859,1769.0,1768.8,5.6533682]
[1745556427102,4.859,1769.0,1768.8,5.83477049]
[1745556427694,4.859,1769.0,1768.8,0.18140229]
[1745556427944,4.859,1769.0,1768.8,5.83492387]
[1745556428131,4.859,1769.0,1768.9,5.65323082]
[1745556428487,4.859,1769.0,1768.9,5.83402652]
[1745556428793,4.859,1769.0,1768.9,0.70368011]
[1745556429005,4.859,1769.0,1768.9,6.35691093]
[1745556430228,4.859,1769.0,1768.9,6.35722531]
[1745556430435,4.859,1769.0,1768.9,7.55828048]
[1745556433037,4.859,1769.0,1768.9,6.35722531]
[1745556433222,4.859,1769.0,1768.9,0.70399449]
[1745556433539,4.859,1769.0,1768.9,6.35722531]
[1745556433725,4.859,1769.0,1768.9,0.70399449]
[1745556434514,4.859,1769.0,1768.9,6.35722531]
[1745556437315,4.859,1769.0,1768.9,0.70399449]
[1745556440324,4.859,1769.0,1768.9,0.1807957]
[1745556440516,4.859,1769.0,1768.7,6.44025967]
[1745556440716,4.859,1769.0,1768.8,5.83194468]
[1745556442144,4.859,1769.0,1768.8,0.17844094]
[1745556442821,4.859,1769.0,1768.8,5.83182293]
[1745556443008,4.859,1769.0,1768.8,5.83199051]
[1745556445418,4.859,1769.0,1768.8,0.17844094]
[1745556445616,4.859,1769.0,1768.8,5.83195266]
[1745556445816,4.859,1769.0,1768.8,0.17844094]
[1745556446209,4.859,1769.0,1768.8,5.83198095]
[1745556447115,4.859,1769.0,1768.8,0.17844094]
[1745556447316,4.859,1769.0,1768.8,5.83199015]
[1745556448848,4.859,1769.0,1768.9,0.52283041]
[1745556449050,4.859,1769.0,1768.9,0.70069842]
[1745556449350,4.859,1769.0,1768.9,0.17786801]
[1745556450978,4.859,1769.0,1768.9,0.70093346]
[1745556451493,4.859,1769.0,1768.9,0.17786801]
[1745556451693,4.859,1769.0,1768.8,5.65354547]
[1745556451853,4.859,1769.0,1768.9,0.17786801]
[1745556452484,5.6634,1769.0,1768.9,0.70117033]
[1745556452670,4.859,1769.0,1768.9,0.70117033]
[1745556458808,5.64769116,1770.7,1769.1,0.7897]
[1745556458809,16.969,1769.6,1769.1,0.7897]
[1745556459111,4.857,1769.5,1769.4,6.44133332]
[1745556459411,4.857,1769.8,1769.6,5.65078857]
[1745556459570,4.857,1769.8,1769.7,0.52330232]
[1745556459775,4.857,1769.8,1769.7,0.69584917]
[1745556462501,4.857,1769.8,1769.7,5.8232221]
[1745556462901,4.857,1769.8,1769.7,0.17254685]
[1745556463209,4.857,1769.8,1769.6,5.65079314]
[1745556463377,4.857,1769.8,1769.7,0.69411063]
[1745556463899,4.857,1769.8,1769.7,0.17254685]
[1745556464113,4.857,1769.8,1769.6,5.6509821]
[1745556464405,4.857,1769.8,1769.7,0.1702601]
[1745556464796,4.857,1769.8,1769.6,5.6509821]
[1745556465153,4.857,1769.8,1769.7,0.1702601]
[1745556465306,4.857,1769.8,1769.5,5.65126555]
[1745556465513,4.857,1769.8,1769.6,5.8217866]
[1745556466698,4.857,1769.8,1769.7,5.65067525]
[1745556467006,4.857,1769.8,1769.7,5.82093535]
[1745556468918,4.857,1769.8,1769.7,0.1702601]
[1745556469081,4.857,1769.8,1769.6,5.65079648]
[1745556469281,4.857,1769.8,1769.6,5.65075922]
[1745556469491,4.857,1769.8,1769.7,0.1702601]
[1745556469690,4.857,1769.8,1769.5,0.64409655]
[1745556469891,4.857,1769.8,1769.7,0.1702601]
[1745556470092,4.857,1769.8,1769.6,5.65072851]
[1745556470287,4.857,1769.8,1769.7,0.1702601]
[1745556470581,4.857,1769.8,1769.6,5.65080202]
[1745556470992,4.857,1769.8,1769.7,0.1702601]
[1745556471388,4.857,1769.8,1769.5,5.65120303]
[1745556471687,4.857,1769.8,1769.6,0.17083251]
[1745556472654,0.7703,1769.7,1769.6,0.17083251]
[1745556473027,0.7703,1769.7,1769.4,5.65162921]
[1745556473181,0.7703,1769.7,1769.6,0.17083251]
[1745556473807,0.7703,1769.7,1769.3,6.4379046]
[1745556474012,0.7703,1769.7,1769.6,0.17083251]
[1745556474208,0.7703,1769.7,1769.3,6.4379046]
[1745556474825,0.7703,1769.7,1769.4,0.17197754]
[1745556475989,1.3816,1769.7,1769.4,0.17197754]
[1745556476744,1.3816,1769.7,1769.4,0.17028119]
[1745556476949,2.14701029,1769.7,1769.4,0.17028119]
[1745556477137,2.14701029,1769.7,1769.1,5.6523293]
[1745556477336,2.14701029,1769.7,1769.5,0.17075899]
[1745556477645,2.14701029,1769.7,1769.1,5.6523293]
[1745556477811,2.14701029,1769.7,1769.2,5.65227153]
[1745556478015,2.14701029,1769.7,1769.2,5.81122484]
[1745556478443,2.14701029,1769.7,1769.2,0.15895331]
[1745556478947,2.14701029,1769.7,1769.3,0.15838063]
[1745556479144,2.14701029,1769.7,1769.1,5.65239145]
[1745556479346,2.14701029,1769.7,1769.2,0.68041535]
[1745556479716,2.14701029,1769.7,1769.2,6.33256159]
[1745556479914,2.14701029,1769.7,1769.2,5.81109955]
[1745556480851,2.14701029,1769.7,1769.2,0.15895331]
[1745556481244,2.14701029,1769.7,1769.1,5.65259171]
[1745556481416,2.14701029,1769.7,1769.3,0.15871688]
[1745556481616,2.14701029,1769.7,1769.2,5.81142631]
[1745556481850,2.14701029,1769.7,1769.4,0.15814427]
[1745556482020,2.14701029,1769.7,1769.3,0.15871688]
[1745556482221,2.14701029,1769.7,1769.5,0.15757173]
[1745556482448,2.14701029,1769.7,1769.4,0.15814427]
[1745556482662,2.17461029,1769.7,1769.6,0.15699925]
[1745556482857,0.7979,1769.6,1769.5,0.15757173]
[1745556483022,0.7979,1769.6,1769.0,6.43122697]
[1745556483222,0.7979,1769.6,1769.1,0.52183215]
[1745556483578,1.56331029,1769.5,1769.1,0.52183215]
[1745556483728,0.7979,1769.2,1769.1,0.52183215]
[1745556483922,0.7979,1769.2,1768.8,6.41291152]
[1745556484241,0.7979,1769.2,1768.9,0.64129115]
[1745556484457,0.7979,1769.2,1768.9,0.14854464]
[1745556484838,0.7979,1769.2,1768.7,0.7595]
[1745556485455,0.7979,1769.2,1768.8,0.67203198]
[1745556485658,0.7979,1769.2,1768.8,0.1495211]
[1745556486529,0.7979,1769.2,1768.6,5.65399536]
[1745556486729,0.7979,1769.2,1768.7,0.15009409]
[1745556486956,0.7979,1769.2,1768.6,6.86038408]
[1745556487263,0.7979,1769.2,1768.7,0.67230221]
[1745556487958,0.7979,1769.2,1768.8,0.52220812]
[1745556488249,0.7979,1769.2,1768.9,0.14894817]
[1745556488980,1.68212634,1769.2,1768.6,5.65395069]
[1745556489182,1.68212634,1769.2,1769.0,0.1483753]
[1745556489336,1.68212634,1769.2,1768.7,0.52215951]
[1745556489531,1.68212634,1769.2,1768.8,0.15120276]
[1745556489842,1.68212634,1769.2,1768.6,5.65395069]
[1745556490168,1.68212634,1769.2,1768.6,6.86035173]
[1745556490335,1.68212634,1769.2,1768.7,0.15177576]
[1745556490534,1.68212634,1769.2,1768.7,5.65372847]
[1745556490755,1.68212634,1769.2,1768.8,0.15120276]
[1745556490956,1.68212634,1769.2,1768.8,0.67326827]
[1745556491263,1.68212634,1769.2,1768.8,0.15120276]
[1745556491866,1.68212634,1769.2,1768.7,5.65366921]
[1745556492067,1.68212634,1769.2,1768.9,0.1517398]
[1745556492237,1.68212634,1769.2,1768.8,0.15231273]
[1745556492437,1.68212634,1769.2,1769.0,0.15116694]
[1745556492639,1.68212634,1769.2,1768.9,0.1517398]
[1745556492936,1.68212634,1769.2,1769.0,0.15116694]
[1745556493136,1.68212634,1769.2,1768.7,5.65366921]
[1745556493336,1.68212634,1769.2,1768.8,0.15231273]
[1745556493537,1.25423103,1769.2,1768.8,0.67433267]
[1745556493970,0.7857,1769.1,1768.8,0.15231273]
[1745556494152,4.855,1769.0,1768.5,6.410062]
[1745556494348,4.855,1769.0,1768.6,0.79443135]
[1745556494946,4.855,1769.0,1768.6,0.15342515]
[1745556494947,0.8194,1768.9,1768.6,0.15342515]
[1745556495210,0.8194,1768.9,1768.4,5.65471621]
[1745556495333,0.8194,1768.9,1768.7,0.15285209]
[1745556495669,0.8194,1768.9,1768.5,5.65449184]
[1745556495848,4.855,1769.0,1768.8,0.15227909]
[1745556496043,4.855,1769.0,1768.6,0.8042]
[1745556496270,4.855,1769.0,1768.9,0.15170616]
[1745556496468,4.855,1769.0,1768.6,5.65415172]
[1745556496987,4.855,1769.0,1768.7,0.15285209]
[1745556497185,4.855,1769.0,1768.4,5.65468578]
[1745556497186,1.2955,1768.9,1768.4,5.65468578]
[1745556497336,1.2955,1768.9,1768.5,0.15399828]
[1745556497337,0.81,1768.9,1768.5,0.15399828]
[1745556498037,3.81,1768.9,1768.5,0.15399828]
[1745556498280,0.81,1768.8,1768.5,0.15399828]
[1745556498479,0.81,1768.8,1768.3,0.7806]
[1745556498770,1.191,1768.8,1768.4,0.52210362]
[1745556498976,1.191,1768.8,1768.5,0.15399828]
[1745556499475,1.191,1768.8,1768.3,6.43554298]
[1745556499646,0.81,1768.8,1768.6,0.15342515]
[1745556499982,0.81,1768.8,1768.4,5.65478909]
[1745556500145,0.81,1768.8,1768.5,0.15399828]
[1745556501353,0.81,1768.8,1768.3,6.43554436]
[1745556501563,0.81,1768.8,1768.4,0.15457147]
[1745556502038,1.191,1768.8,1768.4,0.15457147]
[1745556502375,1.191,1768.8,1768.2,6.43788527]
[1745556502696,1.191,1768.8,1768.3,5.6550072]
[1745556502878,1.191,1768.8,1768.3,6.33254739]
[1745556503777,1.191,1768.8,1768.4,0.52239547]
[1745556504175,1.191,1768.8,1768.5,0.15399828]
[1745556504585,23.944,1768.8,1768.2,6.43783715]
[1745556504758,23.944,1768.8,1768.3,5.8115304]
[1745556505084,23.944,1768.8,1768.3,6.33383231]
[1745556505386,23.563,1768.8,1768.3,0.6788759]
[1745556505556,23.563,1768.8,1768.4,6.17718735]
[1745556505752,23.563,1768.8,1768.5,0.15524328]
[1745556506487,4.854,1768.7,1768.5,0.15524328]
[1745556506699,4.854,1768.7,1768.3,5.65510138]
[1745556507082,4.854,1768.7,1768.4,0.15581647]
[1745556507385,4.854,1768.7,1768.4,0.67850833]
[1745556507757,4.854,1768.7,1768.4,0.15581647]
[1745556508754,4.854,1768.7,1768.2,7.08160499]
[1745556509086,4.854,1768.7,1768.3,6.33416891]
[1745556509474,4.854,1768.7,1768.4,0.52292411]
[1745556509785,4.854,1768.7,1768.5,0.15524328]
[1745556510687,4.854,1768.7,1768.3,5.65485508]
[1745556510865,4.854,1768.7,1768.6,0.15467015]
[1745556511064,4.854,1768.7,1768.3,5.65485508]
[1745556511272,4.854,1768.7,1768.6,0.15467015]
[1745556511469,4.854,1768.7,1768.4,0.52301513]
[1745556511667,4.854,1768.7,1768.6,0.15467015]
[1745556511859,4.854,1768.7,1768.5,0.67825841]
[1745556512184,4.854,1768.7,1768.6,0.15467015]
[1745556512392,4.854,1768.7,1768.2,1.54801029]
[1745556512558,4.854,1768.7,1768.4,11.30916052]
[1745556512754,4.854,1768.7,1768.5,0.15524328]
[1745556513183,4.854,1768.7,1768.6,0.52343756]
[1745556513385,4.854,1768.7,1768.6,0.67810771]
[1745556514822,4.854,1768.7,1768.6,0.15467015]
[1745556515176,4.854,1768.7,1768.3,5.65513334]
[1745556515378,4.854,1768.7,1768.4,0.15581647]
[1745556515977,4.854,1768.7,1768.5,0.5238147]
[1745556516173,4.854,1768.7,1768.6,0.67848485]
[1745556518226,4.854,1768.7,1768.6,0.15467015]
[1745556518723,4.854,1768.7,1768.4,0.51]
[1745556519021,4.854,1768.7,1768.5,0.15524328]
[1745556519723,22.753,1768.6,1768.5,0.15524328]
[1745556519928,23.582,1768.6,1768.5,0.15524328]
[1745556520423,23.582,1768.6,1768.5,0.6795617]
[1745556520724,22.753,1768.6,1768.5,0.6795617]
[1745556521694,22.753,1768.6,1768.5,7.15857117]
[1745556533008,22.753,1768.6,1768.5,6.33407117]
[1745556543315,22.753,1768.6,1768.5,0.6795617]
[1745556543520,22.753,1768.6,1768.5,6.33414526]
[1745556543885,22.753,1768.6,1768.5,0.67963579]
[1745556544296,22.753,1768.6,1768.5,7.79577074]
[1745556549699,22.753,1768.6,1768.5,10.79577074]
[1745556552835,22.753,1768.6,1768.5,7.79577074]
[1745556553341,22.753,1768.6,1768.5,9.33057296]
[1745556556850,22.753,1768.6,1768.5,6.33414526]
[1745556557242,22.753,1768.6,1768.5,0.67963579]
[1745556557407,22.753,1768.6,1768.5,6.33414526]
[1745556557818,23.5103,1768.6,1768.5,0.67963579]
[1745556558611,24.03966185,1768.6,1768.5,0.67963579]
[1745556560532,24.03966185,1768.6,1768.5,6.33414526]
[1745556560736,23.28236185,1768.6,1768.5,6.33414526]
[1745556560941,22.753,1768.6,1768.5,6.33414526]
[1745556563523,22.753,1768.6,1768.5,0.67963579]
[1745556563726,22.753,1768.6,1768.5,6.33414526]
[1745556564550,22.753,1768.6,1768.5,7.66079748]
[1745556565234,22.753,1768.6,1768.5,8.48289748]
[1745556569466,0.7837,1769.2,1768.5,5.00628801]
[1745556569641,4.85,1769.3,1769.2,5.65227221]
[1745556569837,0.8119,1769.2,1769.1,5.65259171]
[1745556570240,0.8119,1769.2,1769.1,6.3136713]
[1745556571070,0.8119,1769.2,1769.1,0.66107959]
[1745556572663,0.8119,1769.2,1769.1,6.3136713]
[1745556574368,0.8119,1769.2,1769.1,0.66107959]
[1745556575391,0.56619,1769.2,1769.1,0.66107959]
[1745556575677,1.37449,1769.2,1769.1,0.66107959]
[1745556575837,1.37449,1769.2,1769.1,0.13707235]
[1745556576170,0.8088,1769.1,1768.5,5.65433116]
[1745556576375,0.8088,1769.1,1768.6,0.52412259]
[1745556576843,0.8088,1769.1,1768.5,5.65444232]
[1745556577484,0.8088,1769.1,1768.6,5.65415857]
[1745556577986,0.7835,1769.0,1768.7,0.52401412]
[1745556578200,4.849,1768.9,1768.7,0.52401412]
[1745556578585,4.849,1768.9,1768.6,5.65415857]
[1745556578987,4.849,1768.9,1768.5,5.65450947]
[1745556579187,4.849,1768.9,1768.6,0.52398587]
[1745556579356,4.849,1768.9,1768.7,0.52398587]
[1745556579561,0.8278,1768.8,1768.7,0.52398587]
[1745556582195,0.8278,1768.8,1768.4,6.16481636]
[1745556582708,0.8278,1768.8,1768.5,0.52389667]
[1745556583072,1.39548,1768.8,1768.5,0.52389667]
[1745556583278,0.8223,1768.7,1768.5,0.52389667]
[1745556583674,0.8223,1768.7,1768.4,0.51]
[1745556584402,0.8223,1768.7,1768.4,6.16480344]
[1745556584892,0.8223,1768.7,1768.5,0.52380388]
[1745556585196,0.8223,1768.7,1768.5,5.65445812]
[1745556585368,0.8223,1768.7,1768.6,0.13234001]
[1745556585788,0.8223,1768.7,1768.6,0.65607656]
[1745556586517,4.849,1768.9,1768.6,0.65607656]
[1745556586518,5.6223,1768.9,1768.6,0.65607656]
[1745556587021,5.6223,1768.9,1768.6,0.13234001]
[1745556587815,0.7674,1768.8,1768.6,0.13234001]
[1745556588002,0.7674,1768.8,1768.4,0.51]
[1745556588003,0.7674,1768.8,1768.4,6.16481005]
[1745556588328,0.7674,1768.8,1768.5,0.13291313]
[1745556589723,0.7882,1768.6,1768.5,0.13291313]
[1745556590016,0.7882,1768.6,1768.4,0.51]
[1745556590221,0.7882,1768.6,1768.5,0.12377528]
[1745556590418,4.85,1768.6,1768.5,0.12377528]
[1745556590618,6.17827492,1768.6,1768.5,0.12377528]
[1745556593636,9.17827492,1768.6,1768.5,0.12377528]
[1745556594025,9.17827492,1768.6,1767.8,0.8079]
[1745556594026,0.7567,1768.4,1767.8,6.46449246]
[1745556594229,0.7567,1768.4,1767.8,5.65663524]
[1745556594424,0.7567,1768.3,1767.8,5.65663524]
[1745556594740,4.851,1768.2,1767.9,0.5240456]
[1745556595148,4.851,1768.2,1767.8,5.65663524]
[1745556595533,4.851,1768.2,1767.9,5.65640991]
[1745556595733,4.851,1768.2,1767.8,5.65662901]
[1745556595932,4.851,1768.2,1767.8,6.22229191]
[1745556596131,0.7567,1767.8,1767.4,6.44316107]
[1745556596331,4.849,1767.8,1767.5,0.52415073]
[1745556596647,4.849,1767.8,1767.5,6.18173151]
[1745556597140,4.849,1767.8,1767.5,11.83922448]
[1745556597341,4.849,1767.8,1767.5,6.91994542]
[1745556597540,4.849,1767.8,1767.5,12.57739722]
[1745556597747,4.849,1767.8,1767.6,5.65736676]
[1745556598045,4.849,1767.8,1767.5,6.91990425]
[1745556598342,4.849,1767.8,1767.5,6.92015431]
[1745556598836,4.849,1767.8,1767.5,6.919909]
[1745556599362,4.849,1767.8,1767.5,1.26245245]
[1745556599517,4.849,1767.8,1767.5,6.9200085]
[1745556599950,4.849,1767.8,1767.5,6.91990781]
[1745556600727,4.849,1767.8,1767.7,6.4297685]
[1745556601243,4.85,1768.1,1767.9,5.65629451]
[1745556601442,4.85,1768.1,1768.0,0.11234217]
[1745556602021,5.6615,1768.1,1767.7,6.42961646]
[1745556602331,5.6615,1768.1,1767.8,0.11348927]
[1745556603958,5.6615,1768.1,1767.8,5.77022559]
[1745556604462,4.85,1768.1,1767.8,5.77022559]
[1745556604758,4.85,1768.1,1767.9,5.6562263]
[1745556604941,4.85,1768.1,1767.9,5.65641832]
[1745556605143,4.85,1768.1,1768.0,0.11234217]
[1745556610471,4.85,1768.1,1767.9,5.656213]
[1745556610668,4.85,1768.1,1768.0,0.13481061]
[1745556614082,4.85,1768.1,1768.0,5.7909192]
[1745556615099,4.85,1768.1,1768.0,6.3152509]
[1745556615396,4.85,1768.1,1768.0,0.65914231]
[1745556616282,4.85,1768.1,1768.0,6.3152509]
[1745556616876,4.85,1768.1,1768.0,5.7909192]
[1745556617607,4.85,1768.1,1768.0,6.99221856]
[1745556618103,4.85,1768.1,1768.0,1.33610997]
[1745556618404,4.85,1768.1,1768.0,0.65988648]
[1745556622319,4.85,1768.1,1768.0,6.31599507]
[1745556622479,0.7546,1768.4,1768.0,0.65988648]
[1745556622681,4.85,1768.3,1768.2,5.6552145]
[1745556622880,4.85,1768.3,1768.2,5.78744528]
[1745556623103,4.85,1768.3,1768.2,6.31252115]
[1745556623427,4.85,1768.3,1768.2,7.59235587]
[1745556623743,4.85,1768.6,1768.4,5.65474498]
[1745556623922,4.85,1768.6,1768.3,6.48514599]
[1745556624097,4.85,1768.6,1768.4,0.130173]
[1745556624991,4.85,1768.6,1768.3,6.48514599]
[1745556625331,4.85,1768.6,1768.4,0.130173]
[1745556625532,5.6058,1768.6,1768.4,0.130173]
[1745556626527,6.16638,1768.6,1768.4,0.130173]
[1745556626892,6.16638,1768.6,1768.2,5.65546014]
[1745556627092,5.6058,1768.6,1768.3,0.13086091]
[1745556627528,5.6058,1768.6,1768.4,0.52507203]
[1745556627930,5.6058,1768.6,1768.5,0.12948517]
[1745556628427,5.6058,1768.6,1768.2,5.65534206]
[1745556628720,5.6058,1768.6,1768.3,0.52531647]
[1745556628933,5.6058,1768.6,1768.4,0.130173]
[1745556629117,6.16638,1768.6,1768.4,0.130173]
[1745556629497,6.16638,1768.6,1768.2,5.65534206]
[1745556629700,5.6058,1768.6,1768.3,0.13086091]
[1745556631244,5.6058,1768.6,1768.4,0.52540898]
[1745556631440,5.6058,1768.6,1768.5,0.24190838]
[1745556632150,5.6058,1768.6,1768.1,0.7721]
[1745556632334,5.6058,1768.6,1768.5,0.24090588]
[1745556632550,6.16638,1768.6,1768.2,5.65530496]
[1745556633089,6.16638,1768.6,1768.3,0.24206748]
[1745556633426,5.41058,1768.6,1768.3,1.02626748]
[1745556633633,5.41058,1768.6,1768.3,0.24206748]
[1745556633868,5.41058,1768.6,1768.4,0.52534407]
[1745556634165,5.41058,1768.6,1768.5,0.24090588]
[1745556634755,5.41058,1768.6,1768.3,5.65505538]
[1745556634961,5.41058,1768.6,1768.5,0.24090588]
[1745556635469,5.41058,1768.6,1768.3,5.65505538]
[1745556635677,5.41058,1768.6,1768.4,0.24148665]
[1745556638753,4.85,1768.6,1768.4,5.89615882]
[1745556639060,4.85,1768.6,1768.4,6.70265882]
[1745556639251,4.85,1768.6,1768.5,0.52517707]
[1745556639452,4.85,1768.6,1768.5,6.41679406]
[1745556641488,4.848,1768.9,1768.6,5.65407647]
[1745556641685,4.848,1768.9,1768.7,0.23594618]
[1745556641852,4.848,1768.9,1768.7,0.52517707]
[1745556642052,4.848,1768.9,1768.8,0.23536561]
[1745556642585,4.848,1768.9,1768.5,7.1024717]
[1745556642752,4.848,1768.9,1768.8,0.23536561]
[1745556642953,4.848,1768.9,1768.5,12.11506887]
[1745556643281,4.848,1768.9,1768.6,1.7362414]
[1745556643485,4.848,1768.9,1768.7,0.76068069]
[1745556644056,4.848,1768.9,1768.7,0.23594618]
[1745556644380,4.848,1768.9,1768.5,0.8065]
[1745556644586,4.848,1768.9,1768.8,0.23536561]
[1745556644761,4.848,1768.9,1768.5,0.8065]
[1745556644964,4.848,1768.9,1768.8,0.23536561]
[1745556645468,4.848,1768.9,1768.5,7.10706929]
[1745556645704,4.848,1768.9,1768.6,0.23652681]
[1745556645911,4.848,1768.9,1768.7,0.5246574]
[1745556646111,4.848,1768.9,1768.8,0.23536561]
[1745556646712,4.848,1768.9,1768.5,6.46096097]
[1745556646911,4.848,1768.9,1768.6,0.88262291]
[1745556647421,4.848,1768.9,1768.7,0.52474769]
[1745556647815,4.848,1768.9,1768.8,0.23536561]
[1745556648404,4.848,1768.9,1768.5,6.46096097]
[1745556648726,4.848,1768.9,1768.6,0.52483122]
[1745556648892,4.848,1768.9,1768.7,0.7607774]
[1745556649544,4.848,1768.9,1768.7,0.23594618]
[1745556649708,4.848,1768.9,1768.6,5.65403014]
[1745556649907,4.848,1768.9,1768.7,0.23594618]
[1745556650132,4.848,1768.9,1768.6,6.86550923]
[1745556650339,4.848,1768.9,1768.7,0.23594618]
[1745556650535,4.848,1768.9,1768.7,0.52470604]
[1745556650835,4.848,1768.9,1768.8,0.76007165]
[1745556654821,4.848,1768.9,1768.8,0.23536561]
[1745556655140,4.848,1768.9,1768.6,5.65417604]
[1745556655443,4.848,1768.9,1768.7,0.75929658]
[1745556655647,4.848,1768.9,1768.7,6.41312941]
[1745556655844,4.848,1768.9,1768.7,1.96602712]
[1745556656020,4.848,1768.9,1768.7,0.75929658]
[1745556656219,4.848,1768.9,1768.7,0.23457699]
[1745556656640,4.848,1768.9,1768.6,5.65417604]
[1745556656839,4.848,1768.9,1768.8,0.23399642]
[1745556657047,4.848,1768.9,1768.8,0.52472842]
[1745556657258,4.848,1768.9,1768.8,0.75872484]
[1745556657721,4.848,1768.9,1768.8,0.23399642]
[1745556657921,4.848,1768.9,1768.6,5.65417604]
[1745556658165,4.848,1768.9,1768.7,0.75944266]
[1745556658736,4.848,1768.9,1768.7,0.23457699]
[1745556658936,4.848,1768.9,1768.6,6.86569195]
[1745556659146,4.848,1768.9,1768.8,0.52491036]
[1745556659346,4.848,1768.9,1768.8,0.75890678]
[1745556659528,6.0958,1768.9,1768.8,0.23399642]
[1745556659732,6.0958,1768.9,1768.5,6.460864]
[1745556659944,5.611,1768.9,1768.6,0.23515763]
[1745556660465,5.611,1768.9,1768.7,0.52509377]
[1745556660818,4.848,1768.9,1768.8,0.23399642]
[1745556661049,4.848,1768.9,1768.8,0.75909019]
[1745556661556,4.848,1768.9,1768.8,0.23399642]
[1745556661729,4.848,1768.9,1768.7,5.653703]
[1745556661928,4.848,1768.9,1768.8,1.06649642]
[1745556663058,4.848,1768.9,1768.8,1.59158833]
[1745556663354,4.848,1768.9,1768.8,0.75908833]
[1745556673387,7.13323441,1768.9,1768.8,0.75908833]
[1745556673565,10.13323441,1768.9,1768.8,0.23399642]
[1745556673757,0.7501,1768.8,1768.1,0.7931]
[1745556674075,1.53513441,1768.4,1768.2,0.74492645]
[1745556674278,4.844,1768.3,1768.2,0.74492645]
[1745556675736,5.6306,1768.3,1768.2,0.74492645]
[1745556675889,6.19366,1768.3,1768.2,0.21805088]
[1745556676049,6.19366,1768.3,1767.9,0.7931]
[1745556676250,5.6306,1768.3,1768.0,0.74541214]
[1745556676573,5.6306,1768.3,1768.0,0.21921288]
[1745556677076,5.6306,1768.3,1768.0,5.87517603]
[1745556677381,4.844,1768.3,1768.0,5.87517603]
[1745556677551,4.844,1768.3,1768.0,12.1979211]
[1745556677752,4.844,1768.3,1768.0,6.54195795]
[1745556678009,4.844,1768.3,1768.1,5.6557803]
[1745556678284,4.844,1768.3,1768.2,0.22021447]
[1745556678483,4.844,1768.3,1768.1,0.52542833]
[1745556678688,4.844,1768.3,1768.2,0.22021447]
[1745556678853,4.844,1768.3,1768.0,5.65610126]
[1745556679052,4.844,1768.3,1768.1,0.22079544]
[1745556679474,4.844,1768.3,1767.9,6.44933318]
[1745556679667,4.844,1768.3,1768.0,0.22117669]
[1745556682002,4.844,1768.3,1768.0,5.877252]
[1745556682152,4.844,1768.3,1768.1,5.65572754]
[1745556682355,4.844,1768.3,1768.2,5.87548352]
[1745556682767,4.844,1768.3,1768.2,6.40025008]
[1745556684115,4.844,1768.3,1768.2,0.74478125]
[1745556686405,4.844,1768.3,1768.2,0.22001469]
[1745556686693,4.844,1768.3,1768.1,7.04217331]
[1745556686997,4.844,1768.3,1768.2,5.8766816]
[1745556687153,4.844,1768.3,1768.2,0.22121277]
[1745556687351,4.844,1768.3,1768.2,0.52530496]
[1745556687594,4.844,1768.3,1768.2,0.74651773]
[1745556688468,4.844,1768.3,1768.2,0.22121277]
[1745556688666,4.844,1768.3,1768.0,11.31190409]
[1745556688867,4.844,1768.3,1768.1,0.22179374]
[1745556690989,0.8237,1768.2,1767.8,6.47459866]
[1745556691191,0.8237,1768.2,1767.9,5.65639794]
[1745556691394,0.8237,1768.2,1767.9,1.21309966]
[1745556691759,0.8237,1768.2,1767.7,6.44402905]
[1745556692369,0.8237,1768.2,1767.8,0.52560756]
[1745556692877,0.8237,1768.2,1767.7,6.44402905]
[1745556693470,0.8237,1768.2,1767.6,0.7762]
[1745556694595,0.8237,1768.2,1767.5,5.65745444]
[1745556694796,0.7712,1768.1,1767.6,0.56574544]
[1745556694957,0.7712,1768.0,1767.4,0.7506]
[1745556695163,4.844,1767.9,1767.4,0.7506]
[1745556695393,4.844,1767.9,1767.5,0.5260124]
[1745556695758,0.8094,1767.8,1767.5,0.5260124]
[1745556695963,0.8094,1767.8,1767.4,6.40845269]
[1745556696195,0.8094,1767.8,1767.4,7.61511595]
[1745556696999,0.8094,1767.8,1767.5,0.5259479]
[1745556697588,0.8094,1767.8,1767.3,5.65832806]
[1745556699294,0.8094,1767.8,1767.3,11.31646237]
[1745556699600,0.8094,1767.8,1767.3,5.65805192]
[1745556700303,0.8094,1767.8,1767.2,6.42733147]
[1745556700503,1.37474,1767.8,1767.2,7.63594809]
[1745556700801,0.7634,1767.7,1767.3,5.65810226]
[1745556701295,0.7634,1767.7,1767.2,1.97751662]
[1745556701495,0.7634,1767.7,1767.2,5.65851545]
[1745556701805,0.7634,1767.7,1767.1,5.65878567]
[1745556702008,0.7892,1767.6,1767.0,6.82801036]
[1745556702210,0.7892,1767.4,1767.0,0.4021292]
[1745556702506,0.7892,1767.3,1767.0,0.4021292]
[1745556703377,4.845,1767.2,1767.0,0.4021292]
[1745556705316,4.845,1767.2,1767.1,0.19553832]
[1745556705624,6.24966612,1767.2,1767.1,0.19553832]
[1745556706321,7.01782234,1767.2,1767.1,0.19553832]
[1745556707179,6.24966612,1767.2,1767.1,0.19553832]
[1745556707886,5.6567,1767.2,1767.1,0.19553832]